bitfinex/quotes_ETHUSD_20220311
["timestamp","ask_amount","ask_price","bid_price","bid_amount"]
[1647042630153,1.0,2561.7,2561.4,0.0150423]
[1647042630354,0.3,2562.2,2561.7,0.00455726]
[1647042630550,1.95262,2562.0,2561.7,0.00455726]
[1647042630751,2.3785979,2561.9,2561.7,0.00455726]
[1647042630951,0.3,2561.8,2561.7,0.00455726]
[1647042631148,1.0,2561.8,2561.4,0.0150423]
[1647042631348,0.97636,2561.7,2561.4,0.0150423]
[1647042631552,1.27636,2561.7,2561.4,0.0150423]
[1647042631753,1.95308,2561.6,2561.4,0.0150423]
[1647042632455,1.95308,2561.6,2561.4,0.01959973]
[1647042632753,4.5,2561.5,2561.4,0.01959973]
[1647042632957,2.8,2561.4,2561.2,5.57e-05]
[1647042633156,2.8,2561.4,2559.7,0.2147479]
[1647042633157,0.0008,2561.1,2559.7,0.2147479]
[1647042633355,0.0008,2561.1,2559.7,0.0195479]
[1647042633356,0.0120792,2560.2,2559.7,0.0195479]
[1647042633553,0.0120792,2560.2,2559.3,0.0194654]
[1647042633554,1.01273461,2559.9,2559.3,0.0194654]
[1647042633755,1.9774387,2559.9,2559.3,1.16814527]
[1647042633985,1.0,2559.9,2559.3,1.16814527]
[1647042634185,0.20395381,2560.6,2559.9,1.25542999]
[1647042634186,0.18948912,2560.5,2559.9,1.25542999]
[1647042634386,0.20395381,2560.6,2559.9,1.25542999]
[1647042634787,0.20395381,2560.6,2560.0,3.6952]
[1647042634988,0.1952,2560.5,2560.1,0.00442255]
[1647042635188,5.23064707,2560.5,2560.1,0.00442255]
[1647042635388,2.8,2560.4,2559.9,1.25542999]
[1647042635589,0.1953,2560.3,2559.9,1.25542999]
[1647042635993,1.2333,2560.5,2559.9,1.25542999]
[1647042635994,0.1953,2560.4,2559.9,1.25542999]
[1647042636190,0.3,2560.5,2559.9,1.25542999]
[1647042636393,2.93186,2560.3,2559.9,1.25542999]
[1647042636590,3.39046239,2560.3,2559.9,1.25542999]
[1647042636791,0.97718,2560.2,2559.9,1.25542999]
[1647042636989,1.0,2560.0,2559.9,1.25542999]
[1647042637189,2.0375,2560.0,2559.9,1.25542999]
[1647042637389,4.14623476,2560.0,2559.9,1.25542999]
[1647042639035,3.14623476,2560.0,2559.9,1.25542999]
[1647042639437,4.14623476,2560.0,2559.9,1.25542999]
[1647042639637,3.14623476,2560.0,2559.9,1.25542999]
[1647042641375,3.15623476,2560.0,2559.9,1.25542999]
[1647042641573,3.44623476,2560.0,2559.9,1.25542999]
[1647042642174,3.14623476,2560.0,2559.9,1.25542999]
[1647042642982,0.17732266,2560.3,2559.9,1.25542999]
[1647042643180,0.35468043,2560.7,2559.9,1.25542999]
[1647042643381,3.1003655,2560.8,2560.2,1.08837777]
[1647042643584,3.0503655,2560.8,2560.2,1.08837777]
[1647042643781,0.1464,2560.7,2559.9,1.25542999]
[1647042643981,3.2827,2560.7,2559.9,1.25542999]
[1647042644280,2.10371,2560.6,2559.9,1.29036466]
[1647042644480,2.40211,2560.6,2559.9,1.29036466]
[1647042644682,0.97692,2560.4,2560.0,0.0045403]
[1647042644883,0.97692,2560.4,2560.1,0.99719401]
[1647042645144,0.97692,2560.4,2560.0,0.0045403]
[1647042645643,1.95407,2560.3,2559.9,1.29036466]
[1647042645843,1.95407,2560.3,2560.0,0.00454024]
[1647042646643,1.95407,2560.3,2559.9,2.26009594]
[1647042646845,0.97703,2560.2,2559.9,2.26009594]
[1647042647043,0.97703,2560.2,2560.0,0.00454012]
[1647042647244,1.95405,2560.2,2560.0,0.00454012]
[1647042647645,3.9311506,2560.2,2560.0,0.00454012]
[1647042647849,3.9311506,2560.2,2559.9,1.29036466]
[1647042648148,3.9311506,2560.2,2560.0,0.00436085]
[1647042649173,3.9311506,2560.2,2559.9,1.29036466]
[1647042649375,2.95405,2560.2,2560.1,0.04650219]
[1647042650875,4.23510562,2560.8,2560.1,0.04650219]
[1647042651076,0.1472,2560.6,2560.1,0.04650219]
[1647042651278,0.1528,2560.7,2560.4,1.10891216]
[1647042651481,1.97694,2560.5,2560.4,1.10891216]
[1647042651677,0.97694,2560.4,2560.1,0.04650219]
[1647042653127,0.97694,2560.4,2560.1,1.14162832]
[1647042654828,1.2200726,2560.8,2560.2,1.9]
[1647042655131,1.2200726,2560.8,2560.1,1.14162832]
[1647042655327,0.1952,2560.7,2560.1,1.14162832]
[1647042655528,0.97694,2560.5,2560.1,1.14162832]
[1647042656128,0.97694,2560.4,2560.1,1.14162832]
[1647042657176,0.97693,2560.3,2560.1,1.14162832]
[1647042657780,2.95394,2560.6,2560.1,1.14162832]
[1647042657981,2.95394,2560.6,2560.3,1.79032069]
[1647042658383,0.97686,2560.5,2560.3,1.79032069]
[1647042659281,0.97686,2560.5,2560.3,1.83674552]
[1647042661426,0.97686,2560.5,2560.3,1.75172039]
[1647042666478,1.27686,2560.5,2560.3,1.75172039]
[1647042666678,2.2538218,2560.5,2560.3,1.75172039]
[1647042667726,0.97686,2560.5,2560.3,1.75172039]
[1647042667929,1.27686,2560.5,2560.3,1.75172039]
[1647042668727,0.97686,2560.5,2560.3,1.75172039]
[1647042670630,0.92686,2560.5,2560.3,1.75172039]
[1647042676326,0.92686,2560.5,2560.4,1.49879402]
[1647042677125,0.92686,2560.5,2560.4,1.39879402]
[1647042679281,0.92686,2560.5,2560.4,1.44518017]
[1647042681387,0.92686,2560.5,2560.4,0.04638615]
[1647042681592,1.2757909,2560.5,2560.4,0.04638615]
[1647042681789,2.1840909,2560.5,2560.4,0.04638615]
[1647042682627,2.1940909,2560.5,2560.4,0.04638615]
[1647042682831,3.32959585,2560.5,2560.4,0.04638615]
[1647042683027,3.48559585,2560.5,2560.4,0.04638615]
[1647042683228,4.48639585,2560.5,2560.4,0.04638615]
[1647042683433,4.89754366,2560.5,2560.4,0.04638615]
[1647042683628,4.47999585,2560.5,2560.4,0.04638615]
[1647042683829,4.47919585,2560.5,2560.4,0.04638615]
[1647042684030,4.47999585,2560.5,2560.4,0.04638615]
[1647042684229,4.48239585,2560.5,2560.3,1.75168171]
[1647042684430,6.87700696,2560.5,2560.3,1.75168171]
[1647042684631,0.1488,2560.4,2560.3,1.75168171]
[1647042684831,0.148,2560.4,2560.3,1.75168171]
[1647042685031,0.158,2560.4,2560.3,1.75168171]
[1647042685236,0.3596,2560.4,2560.3,1.75168171]
[1647042685435,1.78594781,2560.4,2560.3,1.75168171]
[1647042685637,1.78834781,2560.4,2560.3,1.75168171]
[1647042685832,1.78594781,2560.4,2560.3,1.75168171]
[1647042686032,2.78754781,2560.4,2560.3,1.75168171]
[1647042686391,3.78594781,2560.4,2560.3,1.75168171]
[1647042686580,2.78674781,2560.4,2560.3,1.75168171]
[1647042686781,3.59474781,2560.4,2560.3,1.75168171]
[1647042687081,2.58914781,2560.4,2560.3,1.75168171]
[1647042687282,2.174,2560.4,2560.3,1.75168171]
[1647042687483,2.59872054,2560.4,2560.3,1.75168171]
[1647042687686,6.09712054,2560.4,2560.3,1.75168171]
[1647042687889,7.09792054,2560.4,2560.3,1.75168171]
[1647042688086,7.09872054,2560.4,2560.3,1.75168171]
[1647042688290,7.10512054,2560.4,2560.3,1.75168171]
[1647042688490,5.6804,2560.4,2560.3,1.24307651]
[1647042688687,5.6804,2560.4,2560.3,0.04044145]
[1647042688688,8.8286402,2560.4,2560.3,0.04044145]
[1647042688888,6.947,2560.4,2560.3,0.04044145]
[1647042689091,0.95771328,2560.1,2559.9,1.25542999]
[1647042689389,0.96771328,2560.1,2560.0,0.00396002]
[1647042689589,0.31,2560.1,2560.0,0.00396002]
[1647042689792,2.10866833,2560.1,2560.0,0.00396002]
[1647042689990,5.60626833,2560.1,2559.9,1.25542999]
[1647042690232,3.5,2560.0,2559.9,1.25542999]
[1647042690435,3.0,2559.9,2559.6,0.0191951]
[1647042690639,0.9775402,2559.8,2559.6,0.0191951]
[1647042690835,1.0,2559.7,2559.6,0.0191951]
[1647042691033,4.9828,2559.7,2559.6,0.0191951]
[1647042691235,5.9924,2559.7,2559.6,0.0191951]
[1647042691435,2.4884,2559.7,2559.6,0.0191951]
[1647042691638,3.46345,2559.7,2559.6,0.0191951]
[1647042691836,6.96265,2559.7,2559.6,0.0191951]
[1647042692036,2.8,2559.6,2559.5,0.017059]
[1647042692240,4.81,2559.6,2559.5,0.017059]
[1647042692437,1.4804,2559.6,2559.1,0.0171704]
[1647042692637,1.4796,2559.6,2559.1,0.0171704]
[1647042692939,1.96516,2559.6,2559.5,0.00434328]
[1647042693139,0.1648,2559.5,2559.1,0.03454613]
[1647042693336,0.97759,2559.4,2559.1,0.03454613]
[1647042693536,1.28759,2559.4,2559.1,0.03454613]
[1647042693737,4.78759,2559.4,2559.1,0.03454613]
[1647042693983,4.94199,2559.4,2559.1,0.0171704]
[1647042694184,5.94839,2559.4,2559.1,0.0171704]
[1647042694388,5.94759,2559.4,2559.1,0.0171704]
[1647042694884,5.94519,2559.4,2559.1,0.0171704]
[1647042695088,5.94279,2559.4,2559.1,0.0171704]
[1647042695283,5.94439,2559.4,2559.1,0.0171704]
[1647042695492,5.94359,2559.4,2559.1,0.0171704]
[1647042695684,5.94839,2559.4,2559.1,0.0171704]
[1647042695884,5.95399,2559.4,2559.1,0.0171704]
[1647042696086,5.95959,2559.4,2559.1,0.0171704]
[1647042696289,5.96119,2559.4,2559.1,0.0171704]
[1647042696485,5.95559,2559.4,2559.1,0.0171704]
[1647042696684,4.85536,2559.3,2559.1,0.0171704]
[1647042696885,5.46536,2559.3,2559.1,0.0171704]
[1647042697084,6.63816,2559.3,2559.1,0.0171704]
[1647042697285,6.64296,2559.3,2559.1,0.0171704]
[1647042697484,6.64296,2559.3,2559.1,0.02169899]
[1647042697485,7.61183198,2559.3,2559.1,0.02169899]
[1647042697732,3.0,2559.2,2559.1,0.02169899]
[1647042697932,6.51,2559.2,2559.1,0.02169899]
[1647042698132,8.018,2559.2,2559.1,0.02169899]
[1647042698332,0.97784,2559.1,2558.8,0.0764162]
[1647042698530,5.45575,2559.0,2558.8,0.0764162]
[1647042698731,0.0475838,2558.8,2558.4,0.0172367]
[1647042698933,1.0575838,2558.8,2558.6,0.10322052]
[1647042699130,3.5,2558.7,2558.6,0.10322052]
[1647042699330,3.0,2558.6,2558.4,0.0172367]
[1647042699533,6.51,2558.6,2558.4,0.0172367]
[1647042699830,10.93916,2558.6,2558.3,0.0143711]
[1647042700032,8.91634,2558.6,2558.3,0.0143711]
[1647042700232,0.1848,2558.5,2558.3,0.0143711]
[1647042700431,0.1988,2558.5,2558.3,0.0143711]
[1647042700631,0.1988,2558.5,2558.1,0.0190191]
[1647042700632,3.0,2558.4,2558.1,0.0190191]
[1647042700833,1.95611,2558.3,2558.1,0.0190191]
[1647042701035,3.12736,2558.3,2558.1,0.0190191]
[1647042701233,0.4728,2558.2,2558.1,0.0190191]
[1647042701503,0.4876,2558.2,2558.1,0.0190191]
[1647042701691,0.4852,2558.2,2558.1,0.0190191]
[1647042701891,0.4892,2558.2,2558.1,0.0190191]
[1647042702090,1.95616,2558.1,2557.9,0.00774526]
[1647042702294,1.96616,2558.1,2558.0,0.00452639]
[1647042702593,2.11336,2558.1,2558.0,0.00452639]
[1647042702796,1.96616,2558.1,2558.0,0.00452639]
[1647042702996,0.01,2558.1,2558.0,0.00452639]
[1647042703197,0.01,2558.1,2557.9,0.84285164]
[1647042703399,0.98775,2558.1,2557.9,0.84285164]
[1647042703605,0.21740129,2558.5,2557.9,0.84737809]
[1647042703801,0.01,2558.6,2558.0,0.08699202]
[1647042703996,0.00452502,2558.7,2558.0,0.08699202]
[1647042704396,0.97753,2558.6,2558.0,0.08699202]
[1647042704599,0.97753,2558.6,2558.0,1.06461202]
[1647042704796,0.97753,2558.6,2558.2,0.00452629]
[1647042704797,0.9776,2558.6,2558.2,0.00452629]
[1647042704997,0.9876,2558.6,2558.2,0.00452629]
[1647042705626,0.9876,2558.6,2558.1,0.08529293]
[1647042705828,0.9776,2558.6,2558.1,0.08529293]
[1647042706030,0.9776,2558.6,2558.3,0.00439227]
[1647042706227,1.5876,2558.6,2558.3,0.00439227]
[1647042706427,0.97762,2558.4,2558.3,0.00439227]
[1647042706627,0.98762,2558.4,2558.3,0.00439227]
[1647042706830,0.98762,2558.4,2558.2,0.97761]
[1647042707028,0.98762,2558.4,2558.3,0.00407902]
[1647042708033,0.01,2558.4,2558.3,0.00407902]
[1647042708231,0.01,2558.4,2558.2,0.98168918]
[1647042709280,0.01,2558.4,2558.3,1.06804222]
[1647042710080,0.01,2558.4,2558.2,0.98168926]
[1647042710482,0.01,2558.4,2558.2,0.97761]
[1647042710680,0.01,2558.4,2558.2,0.98128556]
[1647042711682,0.01,2558.4,2558.2,0.97761]
[1647042711882,0.01,2558.4,2558.2,0.00367564]
[1647042712083,0.97768,2558.3,2558.2,0.07354151]
[1647042712283,0.98768,2558.3,2558.2,0.07354151]
[1647042712946,0.98768,2558.3,2558.2,0.06986587]
[1647042713149,0.98768,2558.3,2557.9,0.00774526]
[1647042713348,0.97768,2558.3,2558.1,0.00367571]
[1647042714048,0.97768,2558.3,2558.0,0.97772]
[1647042714449,0.97768,2558.3,2558.1,0.00375029]
[1647042714450,4.77768,2558.3,2558.1,0.00375029]
[1647042714848,6.78768,2558.3,2558.1,0.00375029]
[1647042715259,6.78768,2558.3,2557.9,0.00774526]
[1647042715453,0.97789,2558.2,2557.9,0.00774526]
[1647042715651,1.0,2558.0,2557.9,0.00774526]
[1647042715850,1.31,2558.0,2557.9,0.00774526]
[1647042716050,4.81,2558.0,2557.9,0.00774526]
[1647042716252,5.8,2558.0,2557.9,0.00774526]
[1647042716480,5.81,2558.0,2557.9,0.00774526]
[1647042716877,3.28791,2558.0,2557.9,0.00774526]
[1647042717078,6.7658136,2558.0,2557.9,0.00774526]
[1647042717277,7.2218136,2558.0,2557.9,0.00774526]
[1647042717478,7.4451136,2558.0,2557.9,0.00774526]
[1647042717680,7.4467136,2558.0,2557.9,0.00774526]
[1647042717981,6.9130122,2557.9,2557.8,0.00374326]
[1647042718182,11.25801681,2557.9,2557.8,0.00374326]
[1647042718379,12.75001681,2557.9,2557.8,0.00374326]
[1647042718579,0.97822,2557.8,2557.7,3.4688972]
[1647042718779,5.48822,2557.8,2557.7,3.4688972]
[1647042718982,5.66662,2557.8,2557.7,3.4188972]
[1647042719182,16.52477713,2557.8,2557.7,3.4188972]
[1647042719379,16.52797713,2557.8,2557.7,3.4188972]
[1647042719579,16.53037713,2557.8,2557.7,3.4188972]
[1647042719980,16.52957713,2557.8,2557.7,3.4188972]
[1647042720232,16.53037713,2557.8,2557.7,3.4188972]
[1647042720433,16.52957713,2557.8,2557.7,3.4188972]
[1647042720634,16.53197713,2557.8,2557.7,3.4188972]
[1647042720832,16.52957713,2557.8,2557.7,3.4188972]
[1647042721332,16.52877713,2557.8,2557.7,3.4188972]
[1647042721540,6.66582,2557.8,2557.7,3.4188972]
[1647042721736,3.16182,2557.8,2557.7,3.4188972]
[1647042721933,3.14902,2557.8,2557.7,3.4188972]
[1647042722135,2.14582,2557.8,2557.7,3.4188972]
[1647042722335,3.14662,2557.8,2557.7,3.4188972]
[1647042722535,2.14662,2557.8,2557.7,3.4188972]
[1647042722738,3.14342,2557.8,2557.7,3.4188972]
[1647042723038,2.13942,2557.8,2557.7,3.4188972]
[1647042723339,3.13702,2557.8,2557.7,3.4188972]
[1647042723537,1.98822,2557.8,2557.7,3.4188972]
[1647042723736,2.98822,2557.8,2557.7,3.3188972]
[1647042723983,2.13462,2557.8,2557.7,3.3188972]
[1647042724187,1.98822,2557.8,2557.7,3.3188972]
[1647042724381,0.01,2557.8,2557.7,3.3188972]
[1647042725182,1.0,2558.3,2557.7,3.3188972]
[1647042725383,1.0,2558.3,2557.9,0.90128918]
[1647042725583,1.98765,2558.3,2557.7,3.3188972]
[1647042725784,1.97772,2558.3,2557.7,3.3188972]
[1647042725984,0.3,2558.2,2557.7,3.3188972]
[1647042726584,0.97771,2558.1,2557.7,5.27848168]
[1647042727385,0.97771,2558.1,2557.9,0.07469947]
[1647042727642,0.98771,2558.1,2557.7,5.2742872]
[1647042727834,0.98771,2558.1,2557.7,3.32313789]
[1647042727835,0.97771,2558.1,2557.7,3.32313789]
[1647042728036,1.0,2557.9,2557.7,3.32313789]
[1647042728236,0.97794,2557.8,2557.7,3.32313789]
[1647042728636,0.97794,2557.8,2557.7,3.3188972]
[1647042728836,0.97794,2557.8,2557.7,3.32313778]
[1647042729639,0.97794,2557.8,2557.7,3.3188972]
[1647042730138,0.98794,2557.8,2557.7,3.3188972]
[1647042730339,1.98794,2557.8,2557.7,3.3188972]
[1647042730540,1.98794,2557.8,2557.7,3.2688972]
[1647042730541,1.97794,2557.8,2557.7,3.2688972]
[1647042731780,0.97794,2557.8,2557.7,3.2688972]
[1647042735139,1.97794,2557.8,2557.7,3.2688972]
[1647042735332,1.98794,2557.8,2557.7,3.2688972]
[1647042735531,1.97794,2557.8,2557.7,3.2688972]
[1647042736231,0.97794,2557.8,2557.7,3.2688972]
[1647042736430,1.15758896,2558.2,2557.7,3.2688972]
[1647042736431,1.13525896,2558.2,2557.7,3.2688972]
[1647042736831,1.13525896,2558.2,2557.7,3.2188972]
[1647042737133,1.13525896,2558.2,2557.7,3.22255624]
[1647042737329,1.13525896,2558.2,2558.0,0.88831135]
[1647042737530,1.13525896,2558.2,2558.0,1.86595135]
[1647042737531,1.14525896,2558.2,2558.0,1.86595135]
[1647042737733,1.14525896,2558.2,2558.0,0.97764]
[1647042740404,1.13525896,2558.2,2558.0,0.97764]
[1647042740604,0.9776,2558.4,2558.1,3.5]
[1647042740804,2.942831,2558.5,2558.2,0.08448483]
[1647042740805,0.009951,2558.5,2558.2,0.08448483]
[1647042741009,0.019951,2558.5,2558.2,0.08448483]
[1647042741227,0.009951,2558.5,2558.2,0.08448483]
[1647042741608,0.00395543,2558.6,2558.3,1.85365263]
[1647042741807,0.00395543,2558.6,2558.5,0.06690288]
[1647042742009,0.2071311,2559.4,2558.5,0.06690288]
[1647042742208,0.2071311,2559.4,2558.6,0.083886]
[1647042742410,1.63129943,2559.4,2558.6,0.083886]
[1647042742840,1.63129943,2559.4,2559.0,0.86760964]
[1647042743039,0.98724,2559.5,2559.0,0.94106209]
[1647042743040,1.43416833,2559.5,2559.0,0.94106209]
[1647042743240,1.43416833,2559.5,2559.0,0.86760964]
[1647042743241,0.00394935,2559.1,2559.0,0.86760964]
[1647042743443,0.00394935,2559.1,2559.0,0.95083813]
[1647042743940,4.935e-05,2559.1,2559.0,0.95083813]
[1647042744140,0.01,2559.5,2559.1,0.07190329]
[1647042744341,2.55927821,2559.8,2559.1,0.07190329]
[1647042744544,0.00283757,2559.2,2559.1,0.07190329]
[1647042745441,1.42416833,2559.8,2559.2,0.08260883]
[1647042745641,1.42416833,2559.8,2559.4,0.07918372]
[1647042746042,2.40127833,2559.9,2559.1,0.08023148]
[1647042746242,2.40127833,2559.9,2559.1,1.05731898]
[1647042746478,1.42416833,2559.8,2559.7,0.95158238]
[1647042746677,1.42416833,2559.8,2559.7,0.67501682]
[1647042746678,0.01,2559.8,2559.7,0.67501682]
[1647042746877,0.01,2559.8,2559.6,0.08258782]
[1647042749283,0.01452492,2559.8,2559.6,0.08258782]
[1647042750142,0.01,2559.8,2559.6,0.08258782]
[1647042750336,0.01452492,2559.8,2559.6,0.08258782]
[1647042751430,0.01,2559.8,2559.6,0.08258782]
[1647042751629,0.01452492,2559.8,2559.6,0.08258782]
[1647042752639,1.57296833,2560.4,2559.6,0.08258782]
[1647042752836,2.42416833,2560.5,2559.7,1.95351]
[1647042753034,8.76416833,2560.6,2559.8,3.5]
[1647042753237,7.34,2560.6,2559.9,0.06836455]
[1647042753639,7.34,2560.6,2560.0,0.88509483]
[1647042753886,0.01,2560.7,2560.1,0.07571431]
[1647042754085,1.42416833,2560.9,2560.1,0.07571431]
[1647042754086,0.00437194,2560.4,2560.1,0.07571431]
[1647042754887,1.37854027,2560.9,2560.2,0.97671]
[1647042755190,0.00437194,2560.4,2560.2,0.97671]
[1647042755587,0.00437194,2560.4,2560.3,0.08395218]
[1647042755987,0.00437194,2560.4,2560.3,3.58395218]
[1647042756188,7.59178676,2561.1,2560.5,0.97655]
[1647042756388,7.59178676,2561.1,2560.7,0.07002417]
[1647042756389,7.34,2561.1,2560.7,0.07002417]
[1647042756790,0.39365924,2561.6,2560.5,0.06739795]
[1647042756991,0.19845924,2561.6,2560.7,0.9765057]
[1647042757190,0.19845924,2561.6,2560.6,1.95296]
[1647042757191,2.8648261,2561.5,2560.6,1.95296]
[1647042757388,0.25154351,2561.4,2560.4,0.00111693]
[1647042757651,0.0513821,2561.3,2560.2,1.20919422]
[1647042757848,0.00315156,2561.2,2560.2,1.14231693]
[1647042758045,0.00315156,2561.2,2560.3,0.07705263]
[1647042758246,0.97664,2561.1,2560.4,0.94337878]
[1647042758446,1.95333,2561.1,2560.6,0.97669]
[1647042758746,1.27669,2561.1,2560.6,0.97669]
[1647042758946,0.00315156,2560.9,2560.6,0.97669]
[1647042759546,0.00315156,2560.9,2560.5,0.97674]
[1647042759747,0.00315156,2560.9,2560.2,3.0947]
[1647042759749,1.0,2560.6,2560.2,3.0947]
[1647042760147,1.0,2560.6,2560.2,1.9535]
[1647042760346,1.3,2560.6,2560.2,1.9535]
[1647042760949,2.27688,2560.6,2560.2,1.9535]
[1647042761147,0.97685,2560.5,2560.2,1.9535]
[1647042761387,1.28137665,2560.5,2560.2,1.9535]
[1647042761984,0.98137665,2560.5,2560.2,1.9535]
[1647042762185,1.27685,2560.5,2560.2,1.9535]
[1647042762384,1.28114946,2560.5,2560.2,1.9535]
[1647042762585,1.28114946,2560.5,2560.2,1.43257128]
[1647042762789,0.00429946,2560.5,2560.2,1.43257128]
[1647042763387,0.05070208,2560.7,2560.2,1.43257128]
[1647042763590,0.00292564,2560.5,2560.2,1.43257128]
[1647042764687,0.05070208,2560.7,2560.2,1.43257128]
[1647042764888,0.00292564,2560.5,2560.2,1.43257128]
[1647042765738,0.3,2560.6,2560.2,1.43257128]
[1647042766140,0.00443967,2560.5,2560.2,1.43257128]
[1647042767037,0.9768,2560.6,2560.2,1.43257128]
[1647042767238,0.00443967,2560.5,2560.2,1.43257128]
[1647042768247,0.05070208,2560.7,2560.2,1.43257128]
[1647042768645,0.00443967,2560.5,2560.2,1.43257128]
[1647042769379,0.00443967,2560.5,2560.2,1.33257128]
[1647042769579,0.00452997,2560.5,2560.2,1.33257128]
[1647042769880,0.98136997,2560.5,2560.2,1.33257128]
[1647042770485,0.98136997,2560.5,2560.1,0.97674]
[1647042770679,0.97684,2560.5,2560.1,0.97674]
[1647042770883,0.98122013,2560.5,2560.1,0.97674]
[1647042771482,1.28122013,2560.5,2560.1,0.97674]
[1647042771684,0.04476282,2560.4,2560.1,0.97674]
[1647042771879,1.02163282,2560.4,2560.1,0.97674]
[1647042773136,1.99852282,2560.4,2560.1,0.97674]
[1647042773336,2.29852282,2560.4,2560.1,0.97674]
[1647042774937,1.32163282,2560.4,2560.1,0.97674]
[1647042775235,1.02163282,2560.4,2560.1,0.97674]
[1647042778284,0.04476282,2560.4,2560.1,0.97674]
[1647042779086,0.04476282,2560.4,2560.2,1.1257734]
[1647042779287,0.00416297,2560.5,2560.2,1.1257734]
[1647042780140,0.00416297,2560.5,2560.2,2.1024834]
[1647042780329,0.35048315,2561.0,2560.2,2.1024834]
[1647042780528,0.35048315,2561.0,2560.2,0.97671]
[1647042780529,0.00403108,2560.5,2560.2,0.97671]
[1647042780930,0.00403108,2560.5,2560.1,2.19374]
[1647042781533,0.04945644,2560.7,2560.1,2.19374]
[1647042781732,0.00405895,2560.5,2560.1,2.19374]
[1647042781931,0.00405895,2560.5,2560.3,1.06310903]
[1647042782736,0.05308851,2561.1,2560.3,1.06310903]
[1647042782937,0.05308851,2561.1,2560.5,0.9765]
[1647042783989,0.00414593,2560.9,2560.5,0.9765]
[1647042784594,0.98083593,2560.9,2560.5,0.9765]
[1647042784793,2.38943992,2560.9,2560.4,1.1909]
[1647042784994,2.45728544,2560.8,2560.2,0.97683]
[1647042785192,0.04871764,2560.7,2560.3,3.5]
[1647042785392,0.04871764,2560.7,2560.1,1.95354]
[1647042785592,1.02558764,2560.7,2560.1,1.95354]
[1647042785793,0.04871764,2560.7,2560.2,0.8328518]
[1647042785994,0.04871764,2560.7,2560.3,0.97676]
[1647042786697,0.00414583,2560.6,2560.3,0.97676]
[1647042787493,0.04871764,2560.7,2560.3,0.97676]
[1647042787748,0.00428131,2560.6,2560.3,0.97676]
[1647042788548,0.04871764,2560.7,2560.3,0.97676]
[1647042788748,0.04871764,2560.7,2560.0,1.1909]
[1647042788949,0.00436767,2560.6,2560.0,1.3861]
[1647042789353,0.00436767,2560.6,2560.1,0.97685]
[1647042789550,0.98123767,2560.6,2560.1,0.97685]
[1647042789749,0.97691,2560.4,2560.0,1.1909]
[1647042790148,0.97691,2560.4,2559.9,3.6952]
[1647042790349,0.97691,2560.4,2559.9,0.1952]
[1647042790549,1.9538,2560.4,2559.9,0.1952]
[1647042791148,1.9538,2560.4,2559.9,1.17209]
[1647042792988,1.9538,2560.4,2559.9,0.97689]
[1647042793388,1.9538,2560.4,2559.9,0.9760123]
[1647042794390,1.9538,2560.4,2559.9,1.98145984]
[1647042794594,1.95125382,2560.4,2559.9,1.98145984]
[1647042796036,1.95125382,2560.4,2559.9,0.9760123]
[1647042796240,1.95125382,2560.4,2559.9,0.9699683]
[1647042796642,3.35985781,2560.4,2559.9,0.9699683]
[1647042797041,3.35985781,2560.4,2559.9,1.78575484]
[1647042797645,3.35985781,2560.4,2559.9,0.9699683]
[1647042798041,1.40860399,2560.3,2559.9,0.9699683]
[1647042798242,2.38553399,2560.3,2559.9,0.9699683]
[1647042798892,3.36249399,2560.3,2559.9,0.9699683]
[1647042799192,1.03036661,2560.2,2559.6,1.2411]
[1647042799392,0.04723236,2560.1,2559.6,1.2411]
[1647042800195,1.04723236,2560.1,2559.6,1.2411]
[1647042800397,1.0251707,2560.0,2559.4,2.25719365]
[1647042800598,0.97713,2559.9,2559.5,1.59910657]
[1647042800898,0.97713,2559.9,2559.2,2.3562]
[1647042800899,0.0484827,2559.8,2559.2,2.35731693]
[1647042801101,0.3484827,2559.8,2559.3,1.59922489]
[1647042801299,1.3484827,2559.8,2559.2,1.1635]
[1647042801498,1.3,2559.8,2559.2,1.1635]
[1647042801697,0.04373152,2559.7,2559.3,1.59931772]
[1647042801998,0.04373152,2559.7,2559.2,1.1635]
[1647042802203,0.04723079,2559.6,2559.2,1.1635]
[1647042802645,0.04723079,2559.6,2559.1,0.97721]
[1647042802838,0.04723079,2559.6,2559.2,1.59932717]
[1647042803438,0.04723079,2559.6,2559.3,0.97711]
[1647042804038,0.3,2559.8,2559.3,0.97711]
[1647042804039,0.3559284,2559.8,2559.3,0.97711]
[1647042804239,0.0559284,2559.8,2559.4,0.89436116]
[1647042804440,0.0559284,2559.8,2559.4,1.87143116]
[1647042804838,0.3559284,2559.8,2559.4,1.87143116]
[1647042805239,0.0559284,2559.8,2559.4,0.97707]
[1647042806484,0.0559284,2559.8,2559.4,1.84346859]
[1647042806685,0.0559284,2559.8,2559.5,1.59911616]
[1647042806885,0.0559284,2559.8,2559.5,2.57613616]
[1647042807085,0.0559284,2559.8,2559.5,0.97702]
[1647042815790,3.68562399,2560.1,2559.5,4.47702]
[1647042815791,1.02627753,2560.1,2559.5,4.47702]
[1647042815989,1.40860399,2560.4,2559.6,1.67874989]
[1647042816190,1.40860399,2560.4,2559.7,4.56364903]
[1647042816595,1.46524578,2560.5,2559.7,4.56364903]
[1647042816795,1.46923196,2560.5,2559.8,0.976725]
[1647042816996,1.46923196,2560.5,2560.2,1.09363369]
[1647042817197,0.06062797,2560.5,2560.2,1.09363369]
[1647042817395,0.05664179,2560.5,2560.2,1.09363369]
[1647042817846,0.06062859,2560.5,2560.2,1.09363369]
[1647042818645,0.05664179,2560.5,2560.2,1.09363369]
[1647042819047,0.06062927,2560.5,2560.2,2.07042369]
[1647042819848,0.05664179,2560.5,2560.2,2.07042369]
[1647042820248,0.06059584,2560.5,2560.2,2.07042369]
[1647042821049,2.68538399,2560.6,2560.2,2.07042369]
[1647042821390,0.00395405,2560.5,2560.2,2.07042369]
[1647042822188,0.98076405,2560.5,2560.2,2.07042369]
[1647042822389,0.97681,2560.5,2559.9,1.95352]
[1647042822588,0.9807639,2560.5,2559.9,1.95352]
[1647042822795,0.9807639,2560.5,2559.9,1.95225282]
[1647042823392,1.0291993,2560.5,2559.9,1.95225282]
[1647042823592,1.0291993,2560.5,2560.0,0.97630353]
[1647042823593,1.0252454,2560.5,2560.0,0.97630353]
[1647042823796,1.02920145,2560.5,2560.1,0.97683]
[1647042824694,1.02389838,2560.5,2560.1,0.97683]
[1647042824993,1.02785454,2560.5,2560.1,0.97683]
[1647042825835,1.02389838,2560.5,2560.0,0.97630353]
[1647042826234,1.02785457,2560.5,2560.0,0.97630353]